fUST/lending_fUST_20250530
["ID","MTS","AMOUNT","RATE_DAILY","PERIOD"]
[363026826,1748553055447,-3257.121547,0.00021369,2]
[363026828,1748553055456,-3257.121547,0.00021369,2]
[363026830,1748553055466,-390.0,0.00021369,2]
[363026832,1748553055475,-430.0,0.00021369,2]
[363026834,1748553055484,-430.0,0.00021369,2]
[363026836,1748553055494,-430.0,0.00021369,2]
[363026838,1748553055503,-430.0,0.00021369,2]
[363026840,1748553055512,-430.0,0.00021369,2]
[363026842,1748553055522,-1812.49,0.00021369,2]
[363026844,1748553055531,-730.13,0.00021369,2]
[363026846,1748553055541,-430.0,0.00021369,2]
[363026848,1748553055550,-430.0,0.00021369,2]
[363026850,1748553055559,-1018.28,0.00021369,2]
[363026852,1748553055569,-430.0,0.00021369,2]
[363026854,1748553055579,-40.10416785,0.00021369,2]
[363026856,1748553055591,-389.89583215,0.00021369,2]
[363026858,1748553055600,-383.90416785,0.00021369,2]
[363026861,1748553055612,-56.58583215,0.00021369,2]
[363026863,1748553055621,-430.0,0.00021369,2]
[363026864,1748553055630,-430.0,0.00021369,2]
[363026866,1748553055639,-606.89,0.00021369,2]
[363026868,1748553055648,-785.01,0.00021369,2]
[363026870,1748553055657,-1088.35,0.00021369,2]
[363026872,1748553055667,-430.0,0.00021369,2]
[363026874,1748553055676,-420.68701519,0.00021369,2]
[363026876,1748553055687,-9.31298481,0.00021369,2]
[363026878,1748553055696,-430.0,0.00021369,2]
[363026881,1748553055705,-620.51,0.00021369,2]
[363026883,1748553055715,-104.52137401,0.00021369,2]
[363027179,1748553098368,150.0,0.00014439,2]
[363027180,1748553098774,150.0,0.00015752,2]
[363027181,1748553099163,161.57,0.00017065,2]
[363027182,1748553169660,150.0,0.00014437,2]
[363027183,1748553170050,150.0,0.00015749,2]
[363027184,1748553227782,610.913588,0.00013699,2]
[363027186,1748553241931,150.0,0.00014455,2]
[363027187,1748553243153,150.0,0.00015769,2]
[363027188,1748553313393,150.0,0.00014497,2]
[363027189,1748553313811,150.0,0.00015815,2]
[363027190,1748553385564,150.0,0.00014484,2]
[363027191,1748553385993,150.0,0.00015801,2]
[363027192,1748553457949,24.36731259,0.00014458,2]
[363027193,1748553457974,125.63268741,0.00014458,2]
[363027194,1748553458358,150.0,0.00015773,2]
[363027195,1748553530614,150.0,0.00014431,2]
[363027196,1748553531027,150.0,0.00015743,2]
[363027197,1748553605846,150.0,0.00014484,2]
[363027198,1748553606781,150.0,0.00015801,2]
[363027201,1748553678352,150.0,0.00014502,2]
[363027202,1748553678747,150.0,0.00015821,2]
[363027203,1748553708632,10000.0,0.00024658,120]
[363027204,1748553750069,150.0,0.00014464,2]
[363027205,1748553751016,150.0,0.00015778,2]
[363027208,1748553822630,150.0,0.00014458,2]
[363027209,1748553823046,150.0,0.00015773,2]
[363027210,1748553893383,150.0,0.00014454,2]
[363027211,1748553893800,150.0,0.00015769,2]
[363027240,1748553946271,-1012.873786,0.00016388,2]
[363027253,1748553964966,150.0,0.00014467,2]
[363027254,1748553965394,150.0,0.00015782,2]
[363027257,1748554029076,-389.70129538,0.00016224,2]
[363027260,1748554036846,150.0,0.00014473,2]
[363027261,1748554037259,150.0,0.00015788,2]
[363027263,1748554042085,-1166.28705234,0.00016224,2]
[363027267,1748554093167,411.6617813,0.00010618,2]
[363027270,1748554108085,150.0,0.00014452,2]
[363027271,1748554108491,150.0,0.00015766,2]
[363027272,1748554108692,280.34756701,0.0001,2]
[363027278,1748554117897,575.84784357,0.000149,2]
[363027284,1748554145221,-7.86225233,0.00016224,2]
[363027285,1748554145245,-177.26,0.0001708,2]
[363027286,1748554145268,-1119.49548991,0.00018,2]
[363027287,1748554145289,-196.8324698,0.00018119,2]
[363027288,1748554145318,-181.86883124,0.00018394,2]
[363027291,1748554169306,-54.47116876,0.00018394,2]
[363027292,1748554178637,150.0,0.00014514,2]
[363027293,1748554179153,150.0,0.00015834,2]
[363027294,1748554179492,151.48,0.00017153,2]
[363027295,1748554179892,201.98,0.00018472,2]
[363027355,1748554232522,-777.41868805,0.00019078,2]
[363027356,1748554232532,-419.98,0.00019168,3]
[363027357,1748554232542,-1200.0,0.00019176,2]
[363027358,1748554232552,-300.0,0.00019177,2]
[363027359,1748554232562,-300.0,0.00019177,2]
[363027360,1748554232572,-283.0,0.00019177,2]
[363027362,1748554232582,-300.0,0.00019177,2]
[363027363,1748554232591,-300.0,0.00019177,2]
[363027365,1748554232602,-430.0,0.00019178,2]
[363027366,1748554232612,-490.0,0.00019178,2]
[363027367,1748554232621,-430.0,0.00019178,2]
[363027368,1748554232630,-430.0,0.00019178,2]
[363027369,1748554232639,-490.0,0.00019178,2]
[363027371,1748554232648,-540.0,0.00019178,2]
[363027373,1748554232658,-490.0,0.00019178,2]
[363027375,1748554232667,-490.0,0.00019178,2]
[363027377,1748554232676,-490.0,0.00019178,2]
[363027379,1748554232686,-430.0,0.00019178,2]
[363027381,1748554232695,-490.0,0.00019178,2]
[363027382,1748554232704,-490.0,0.00019178,2]
[363027384,1748554232713,-490.0,0.00019178,2]
[363027386,1748554232722,-430.0,0.00019178,2]
[363027388,1748554232731,-430.0,0.00019178,2]
[363027390,1748554232740,-430.0,0.00019178,2]
[363027391,1748554232749,-400.0,0.00019178,2]
[363027392,1748554232759,-490.0,0.00019178,2]
[363027394,1748554232768,-324.80810926,0.00019178,2]
[363027395,1748554232778,-504.51640924,0.00019178,2]
[363027396,1748554232787,-430.0,0.00019178,2]
[363027397,1748554232797,-430.0,0.00019178,2]
[363027398,1748554232807,-430.0,0.00019178,2]
[363027399,1748554232816,-423.64732987,0.00019178,2]
[363027400,1748554232826,-430.0,0.00019178,2]
[363027401,1748554232836,-400.0,0.00019178,2]
[363027402,1748554232845,-430.0,0.00019178,2]
[363027403,1748554232855,-430.0,0.00019178,2]
[363027404,1748554232864,-430.0,0.00019178,2]
[363027405,1748554232874,-430.0,0.00019178,2]
[363027406,1748554232883,-528.26599084,0.00019178,2]
[363027407,1748554232892,-430.0,0.00019178,2]
[363027408,1748554232902,-430.0,0.00019178,2]
[363027409,1748554232912,-430.0,0.00019178,2]
[363027410,1748554232921,-430.0,0.00019178,2]
[363027411,1748554232931,-523.66,0.00019178,2]
[363027412,1748554232940,-319.06949838,0.00019178,2]
[363027413,1748554232953,-110.93050162,0.00019178,2]
[363027414,1748554232963,-490.0,0.00019178,2]
[363027415,1748554232972,-244.5649086,0.00019178,2]
[363027416,1748554232981,-430.0,0.00019178,2]
[363027417,1748554232991,-430.0,0.00019178,2]
[363027419,1748554233000,-906.96,0.00019178,2]
[363027420,1748554233010,-430.0,0.00019178,2]
[363027421,1748554233020,-430.0,0.00019178,2]
[363027422,1748554233030,-400.0,0.00019178,2]
[363027423,1748554233039,-430.0,0.00019178,2]
[363027424,1748554233051,-430.0,0.00019178,2]
[363027425,1748554233061,-400.0,0.00019178,2]
[363027426,1748554233070,-430.0,0.00019178,2]
[363027427,1748554233080,-430.0,0.00019178,2]
[363027428,1748554233089,-430.0,0.00019178,2]
[363027429,1748554233100,-430.0,0.00019178,2]
[363027430,1748554233109,-430.0,0.00019178,2]
[363027431,1748554233118,-430.0,0.00019178,2]
[363027432,1748554233128,-430.0,0.00019178,2]
[363027433,1748554233137,-400.0,0.00019178,2]
[363027434,1748554233147,-354.58461933,0.00019178,2]
[363027435,1748554233157,-430.0,0.00019178,2]
[363027436,1748554233167,-430.0,0.00019178,2]
[363027437,1748554233176,-430.0,0.00019178,2]
[363027438,1748554233186,-430.0,0.00019178,2]
[363027439,1748554233196,-450.0,0.00019178,2]
[363027440,1748554233206,-574.440394,0.00019178,2]
[363027441,1748554233216,-430.0,0.00019178,2]
[363027442,1748554233225,-430.0,0.00019178,2]
[363027443,1748554233235,-430.0,0.00019178,2]
[363027444,1748554233244,-430.0,0.00019178,2]
[363027445,1748554233254,-431.09031211,0.00019178,2]
[363027446,1748554233264,-430.0,0.00019178,2]
[363027447,1748554233273,-452.91587572,0.00019178,2]
[363027448,1748554233285,-450.0,0.00019178,2]
[363027449,1748554233294,-430.0,0.00019178,2]
[363027450,1748554233304,-430.0,0.00019178,2]
[363027451,1748554233313,-450.0,0.00019178,2]
[363027452,1748554233323,-430.0,0.00019178,2]
[363027453,1748554233332,-430.0,0.00019178,2]
[363027454,1748554233342,-430.0,0.00019178,2]
[363027455,1748554233353,-430.0,0.00019178,2]
[363027456,1748554233363,-430.0,0.00019178,2]
[363027457,1748554233372,-430.0,0.00019178,2]
[363027458,1748554233382,-363.43963406,0.00019178,2]
[363027459,1748554233391,-430.0,0.00019178,2]
[363027460,1748554233401,-490.0,0.00019178,2]
[363027461,1748554233410,-430.0,0.00019178,2]
[363027462,1748554233419,-450.0,0.00019178,2]
[363027463,1748554233429,-430.0,0.00019178,2]
[363027464,1748554233439,-430.0,0.00019178,2]
[363027465,1748554233450,-430.0,0.00019178,2]
[363027466,1748554233461,-430.0,0.00019178,2]
[363027467,1748554233470,-430.0,0.00019178,2]
[363027468,1748554233480,-1717.32,0.00019178,2]
[363027469,1748554233489,-805.53,0.00019178,2]
[363027470,1748554233499,-188.72126539,0.00019178,2]
[363027471,1748554233508,-485.41,0.00019178,2]
[363027472,1748554233517,-430.0,0.00019178,2]
[363027473,1748554233527,-500.0,0.00019178,2]
[363027474,1748554233536,-151.0,0.00019178,2]
[363027475,1748554233545,-151.5283339,0.00019178,2]
[363027476,1748554233556,-430.0,0.00019178,2]
[363027477,1748554233565,-430.0,0.00019178,2]
[363027478,1748554233575,-430.0,0.00019178,2]
[363027479,1748554233585,-1009.55,0.00019178,2]
[363027480,1748554233595,-430.0,0.00019178,2]
[363027481,1748554233604,-500.0,0.00019178,2]
[363027482,1748554233615,-500.0,0.00019178,2]
[363027483,1748554233625,-500.0,0.00019178,2]
[363027484,1748554233635,-500.0,0.00019178,2]
[363027485,1748554233645,-500.0,0.00019178,2]
[363027486,1748554233655,-430.0,0.00019178,2]
[363027487,1748554233664,-430.0,0.00019178,2]
[363027488,1748554233674,-430.0,0.00019178,2]
[363027489,1748554233683,-500.0,0.00019178,2]
[363027490,1748554233693,-430.0,0.00019178,2]
[363027491,1748554233703,-430.0,0.00019178,2]
[363027492,1748554233713,-350.21144787,0.00019178,2]
[363027493,1748554233723,-430.0,0.00019178,2]
[363027494,1748554233733,-430.0,0.00019178,2]
[363027495,1748554233743,-430.0,0.00019178,2]
[363027496,1748554233752,-430.0,0.00019178,2]
[363027497,1748554233762,-400.0,0.00019178,2]
[363027498,1748554233772,-400.0,0.00019178,2]
[363027499,1748554233780,-394.8,0.00019178,2]
[363027500,1748554233789,-430.0,0.00019178,2]
[363027501,1748554233798,-450.0,0.00019178,2]
[363027502,1748554233807,-430.0,0.00019178,2]
[363027503,1748554233815,-430.0,0.00019178,2]
[363027504,1748554233824,-470.0,0.00019178,2]
[363027505,1748554233833,-291.64743689,0.00019178,2]
[363027506,1748554233842,-804.18,0.00019178,2]
[363027507,1748554233856,-430.0,0.00019178,2]
[363027508,1748554233866,-430.0,0.00019178,2]
[363027509,1748554233876,-430.0,0.00019178,2]
[363027510,1748554233886,-430.0,0.00019178,2]
[363027511,1748554233895,-456.53913042,0.00019178,2]
[363027512,1748554233906,-430.0,0.00019178,2]
[363027513,1748554233915,-430.0,0.00019178,2]
[363027514,1748554233924,-430.0,0.00019178,2]
[363027515,1748554233934,-430.0,0.00019178,2]
[363027516,1748554233943,-509.35692007,0.00019178,2]
[363027517,1748554233954,-430.0,0.00019178,2]
[363027518,1748554233964,-430.0,0.00019178,2]
[363027519,1748554233974,-430.0,0.00019178,2]
[363027520,1748554233983,-7526.6,0.00019178,2]
[363027521,1748554233993,-430.0,0.00019178,2]
[363027522,1748554234002,-1275.04,0.00019178,2]
[363027523,1748554234012,-6318.4,0.00019178,2]
[363027524,1748554234022,-430.0,0.00019178,2]
[363027525,1748554234031,-446.79,0.00019178,2]
[363027526,1748554234041,-430.0,0.00019178,2]
[363027527,1748554234051,-430.0,0.00019178,2]
[363027528,1748554234061,-684.6,0.00019178,2]
[363027529,1748554234071,-430.0,0.00019178,2]
[363027530,1748554234080,-490.0,0.00019178,2]
[363027531,1748554234090,-2518.03,0.00019178,2]
[363027532,1748554234102,-430.0,0.00019178,2]
[363027533,1748554234111,-430.0,0.00019178,2]
[363027534,1748554234120,-430.0,0.00019178,2]
[363027535,1748554234130,-430.0,0.00019178,2]
[363027536,1748554234140,-430.0,0.00019178,2]
[363027537,1748554234149,-430.0,0.00019178,2]
[363027538,1748554234159,-430.0,0.00019178,2]
[363027539,1748554234169,-400.92467331,0.00019178,2]
[363027540,1748554234179,-430.0,0.00019178,2]
[363027541,1748554234189,-430.0,0.00019178,2]
[363027542,1748554234199,-430.0,0.00019178,2]
[363027543,1748554234209,-430.0,0.00019178,2]
[363027544,1748554234219,-535.76589772,0.00019178,2]
[363027545,1748554234229,-430.0,0.00019178,2]
[363027546,1748554234239,-723.06,0.00019178,2]
[363027547,1748554234249,-430.0,0.00019178,2]
[363027548,1748554234258,-914.28,0.00019178,2]
[363027549,1748554234268,-213.2477313,0.00019178,2]
[363027550,1748554234277,-430.0,0.00019178,2]
[363027551,1748554234291,-430.0,0.00019178,2]
[363027552,1748554234301,-339.183922,0.00019178,2]
[363027553,1748554234311,-611.91,0.00019178,2]
[363027554,1748554234321,-430.0,0.00019178,2]
[363027555,1748554234330,-1003.82,0.00019178,2]
[363027556,1748554234340,-430.0,0.00019178,2]
[363027557,1748554234352,-1162.84,0.00019178,2]
[363027558,1748554234362,-2787.47,0.00019178,2]
[363027559,1748554234372,-568.18,0.00019178,2]
[363027560,1748554234382,-431.60979836,0.00019178,2]
[363027561,1748554234392,-456.21,0.00019178,2]
[363027562,1748554234401,-430.0,0.00019178,2]
[363027563,1748554234411,-430.0,0.00019178,2]
[363027564,1748554234420,-430.0,0.00019178,2]
[363027565,1748554234429,-500.0,0.00019178,2]
[363027566,1748554234439,-5347.93,0.00019178,2]
[363027567,1748554234449,-430.0,0.00019178,2]
[363027568,1748554234458,-430.0,0.00019178,2]
[363027569,1748554234468,-997.5,0.00019178,2]
[363027570,1748554234477,-430.0,0.00019178,2]
[363027571,1748554234487,-430.0,0.00019178,2]
[363027572,1748554234496,-1245.04,0.00019178,2]
[363027573,1748554234506,-430.0,0.00019178,2]
[363027574,1748554234515,-1153.33,0.00019178,2]
[363027575,1748554234525,-430.0,0.00019178,2]
[363027576,1748554234534,-475.47524009,0.00019178,2]
[363027577,1748554234544,-470.92,0.00019178,2]
[363027578,1748554234553,-430.0,0.00019178,2]
[363027579,1748554234563,-430.0,0.00019178,2]
[363027580,1748554234573,-1267.28,0.00019178,2]
[363027581,1748554234582,-430.0,0.00019178,2]
[363027582,1748554234591,-430.0,0.00019178,2]
[363027583,1748554234602,-430.0,0.00019178,2]
[363027584,1748554234612,-430.0,0.00019178,2]
[363027585,1748554234622,-370.0,0.00019178,2]
[363027586,1748554234631,-3394.88,0.00019178,2]
[363027587,1748554234745,-300.0,0.00019178,2]
[363027588,1748554234755,-8018.64,0.00019178,2]
[363027589,1748554234764,-430.0,0.00019178,2]
[363027590,1748554234774,-430.0,0.00019178,2]
[363027591,1748554234783,-430.0,0.00019178,2]
[363027592,1748554234793,-8878.97,0.00019178,2]
[363027593,1748554234803,-430.0,0.00019178,2]
[363027594,1748554234812,-3637.54,0.00019178,2]
[363027595,1748554234822,-1832.73,0.00019178,2]
[363027596,1748554234831,-206.07,0.00019178,2]
[363027597,1748554234840,-490.0,0.00019178,2]
[363027598,1748554234850,-430.0,0.00019178,2]
[363027599,1748554234859,-2457.42,0.00019178,2]
[363027600,1748554234868,-430.0,0.00019178,2]
[363027601,1748554234877,-430.0,0.00019178,2]
[363027602,1748554234886,-430.0,0.00019178,2]
[363027603,1748554234895,-175.37416722,0.00019178,2]
[363027604,1748554234905,-430.0,0.00019178,2]
[363027605,1748554234914,-430.0,0.00019178,2]
[363027606,1748554234923,-1413.15,0.00019178,2]
[363027607,1748554234932,-430.0,0.00019178,2]
[363027608,1748554234942,-404.96000628,0.00019178,2]
[363027609,1748554234951,-2205.08,0.00019178,2]
[363027610,1748554234960,-815.38,0.00019178,2]
[363027611,1748554234970,-2469.92,0.00019178,2]
[363027612,1748554234979,-430.0,0.00019178,2]
[363027613,1748554234988,-631.57,0.00019178,2]
[363027614,1748554234998,-430.0,0.00019178,2]
[363027615,1748554235008,-430.0,0.00019178,2]
[363027616,1748554235017,-430.0,0.00019178,2]
[363027617,1748554235027,-430.0,0.00019178,2]
[363027618,1748554235036,-430.0,0.00019178,2]
[363027619,1748554235046,-500.0,0.00019178,2]
[363027620,1748554235055,-2181.03,0.00019178,2]
[363027621,1748554235064,-430.0,0.00019178,2]
[363027622,1748554235073,-400.0,0.00019178,2]
[363027623,1748554235083,-430.0,0.00019178,2]
[363027624,1748554235092,-430.0,0.00019178,2]
[363027625,1748554235103,-430.0,0.00019178,2]
[363027626,1748554235112,-2251.1,0.00019178,2]
[363027627,1748554235121,-430.0,0.00019178,2]
[363027628,1748554235131,-538.15,0.00019178,2]
[363027629,1748554235140,-608.69,0.00019178,2]
[363027630,1748554235149,-430.0,0.00019178,2]
[363027631,1748554235159,-9605.38,0.00019178,2]
[363027632,1748554235168,-151.0,0.00019178,2]
[363027633,1748554235177,-151.0,0.00019178,2]
[363027634,1748554235186,-1118.53,0.00019178,2]
[363027635,1748554235196,-430.0,0.00019178,2]
[363027636,1748554235206,-151.0,0.00019178,2]
[363027637,1748554235215,-430.0,0.00019178,2]
[363027638,1748554235224,-151.0,0.00019178,2]
[363027639,1748554235234,-430.0,0.00019178,2]
[363027640,1748554235245,-253.80179823,0.00019178,2]
[363027641,1748554235254,-430.0,0.00019178,2]
[363027642,1748554235264,-630.11,0.00019178,2]
[363027643,1748554235274,-430.0,0.00019178,2]
[363027644,1748554235285,-5182.56,0.00019178,2]
[363027645,1748554235295,-430.0,0.00019178,2]
[363027646,1748554235304,-430.0,0.00019178,2]
[363027647,1748554235314,-1156.51,0.00019178,2]
[363027648,1748554235323,-430.0,0.00019178,2]
[363027649,1748554235333,-3817.27,0.00019178,2]
[363027650,1748554235343,-430.0,0.00019178,2]
[363027651,1748554235354,-729.1,0.00019178,2]
[363027652,1748554235364,-2566.31,0.00019178,2]
[363027653,1748554235375,-430.0,0.00019178,2]
[363027654,1748554235384,-430.0,0.00019178,2]
[363027655,1748554235393,-430.0,0.00019178,2]
[363027656,1748554235402,-4425.93,0.00019178,2]
[363027657,1748554235412,-430.0,0.00019178,2]
[363027658,1748554235422,-430.0,0.00019178,2]
[363027659,1748554235431,-430.0,0.00019178,2]
[363027660,1748554235440,-390.0,0.00019178,2]
[363027661,1748554235450,-430.0,0.00019178,2]
[363027662,1748554235459,-430.0,0.00019178,2]
[363027663,1748554235469,-757.96,0.00019178,2]
[363027664,1748554235479,-430.0,0.00019178,2]
[363027665,1748554235488,-430.0,0.00019178,2]
[363027666,1748554235498,-430.0,0.00019178,2]
[363027667,1748554235507,-200.0,0.00019178,2]
[363027668,1748554235517,-3519.59,0.00019178,2]
[363027669,1748554235527,-430.0,0.00019178,2]
[363027670,1748554235536,-430.0,0.00019178,2]
[363027671,1748554235546,-430.0,0.00019178,2]
[363027672,1748554235555,-517.97,0.00019178,2]
[363027673,1748554235565,-550.9032418,0.00019178,2]
[363027674,1748554235574,-430.0,0.00019178,2]
[363027675,1748554235584,-430.0,0.00019178,2]
[363027676,1748554235593,-430.0,0.00019178,2]
[363027677,1748554235603,-430.0,0.00019178,2]
[363027678,1748554235613,-430.0,0.00019178,2]
[363027679,1748554235622,-430.0,0.00019178,2]
[363027680,1748554235632,-746.37,0.00019178,2]
[363027681,1748554235642,-1117.07,0.00019178,2]
[363027682,1748554235651,-430.0,0.00019178,2]
[363027683,1748554235661,-4701.65,0.00019178,2]
[363027684,1748554235670,-500.0,0.00019178,2]
[363027685,1748554235680,-11715.37043529,0.00019178,2]
[363027686,1748554235689,-184.277434,0.00019178,2]
[363027687,1748554235699,-500.0,0.00019205,2]
[363027688,1748554235708,-548.0,0.00019233,2]
[363027689,1748554235717,-500.0,0.00019451,2]
[363027690,1748554235727,-500.0,0.00019451,2]
[363027691,1748554235736,-500.0,0.00019451,2]
[363027692,1748554235746,-645.14495469,0.00019451,2]
[363027693,1748554235755,-500.0,0.00019451,2]
[363027694,1748554235765,-500.0,0.00019451,2]
[363027695,1748554235774,-500.0,0.00019451,2]
[363027696,1748554235784,-500.0,0.00019451,2]
[363027697,1748554235793,-307.58584021,0.00019451,2]
[363027698,1748554235802,-500.0,0.00019451,2]
[363027699,1748554235812,-500.0,0.00019451,2]
[363027700,1748554235821,-500.0,0.00019451,2]
[363027701,1748554235830,-500.0,0.00019451,2]
[363027702,1748554235840,-442.97202622,0.00019451,2]
[363027703,1748554235850,-500.0,0.00019451,2]
[363027704,1748554235859,-500.0,0.00019451,2]
[363027705,1748554235868,-500.0,0.00019451,2]
[363027706,1748554235878,-500.0,0.00019451,2]
[363027707,1748554235887,-500.0,0.00019451,2]
[363027708,1748554235896,-500.0,0.00019451,2]
[363027709,1748554235906,-500.0,0.00019451,2]
[363027710,1748554235915,-500.0,0.00019451,2]
[363027711,1748554235924,-500.0,0.00019451,2]
[363027712,1748554235933,-453.91202008,0.00019451,2]
[363027713,1748554235943,-500.0,0.00019451,2]
[363027714,1748554235952,-500.0,0.00019451,2]
[363027715,1748554235962,-500.0,0.00019451,2]
[363027716,1748554235971,-470.0,0.00019452,2]
[363027717,1748554235980,-430.0,0.00019452,2]
[363027718,1748554235990,-430.0,0.00019452,2]
[363027719,1748554236000,-436.44,0.00019452,2]
[363027720,1748554236009,-430.0,0.00019452,2]
[363027721,1748554236019,-430.0,0.00019452,2]
[363027722,1748554236028,-388.9611703,0.00019452,2]
[363027736,1748554238325,-982.45,0.00019178,2]
[363027737,1748554238335,-430.0,0.00019178,2]
[363027738,1748554238344,-430.0,0.00019178,2]
[363027739,1748554238354,-430.0,0.00019178,2]
[363027740,1748554238365,-131.0388297,0.00019452,2]
[363027741,1748554238374,-460.0,0.00019452,2]
[363027742,1748554238384,-430.0,0.00019452,2]
[363027743,1748554238393,-313.79859011,0.00019452,2]
[363027744,1748554238403,-430.0,0.00019452,2]
[363027745,1748554238412,-430.0,0.00019452,2]
[363027746,1748554238421,-430.0,0.00019452,2]
[363027747,1748554238431,-430.0,0.00019452,2]
[363027748,1748554238550,-530.0,0.00019452,2]
[363027749,1748554238559,-430.0,0.00019452,2]
[363027750,1748554238568,-523.66,0.00019452,2]
[363027751,1748554238577,-430.0,0.00019452,2]
[363027752,1748554238586,-430.0,0.00019452,2]
[363027753,1748554238595,-430.0,0.00019452,2]
[363027754,1748554238604,-906.96,0.00019452,2]
[363027755,1748554238613,-430.0,0.00019452,2]
[363027756,1748554238622,-430.0,0.00019452,2]
[363027757,1748554238632,-430.0,0.00019452,2]
[363027758,1748554238641,-420.0,0.00019452,2]
[363027759,1748554238650,-430.0,0.00019452,2]
[363027760,1748554238659,-430.0,0.00019452,2]
[363027761,1748554238669,-468.1520334,0.00019452,2]
[363027762,1748554238678,-288.02457465,0.00019452,2]
[363027763,1748554238688,-420.0,0.00019452,2]
[363027764,1748554238697,-470.0,0.00019452,2]
[363027765,1748554238707,-430.0,0.00019452,2]
[363027766,1748554238716,-420.0,0.00019452,2]
[363027767,1748554238725,-450.0,0.00019452,2]
[363027768,1748554238735,-420.0,0.00019452,2]
[363027769,1748554238744,-430.0,0.00019452,2]
[363027770,1748554238753,-452.1441177,0.00019452,2]
[363027771,1748554238762,-430.0,0.00019452,2]
[363027772,1748554238771,-430.0,0.00019452,2]
[363027773,1748554238780,-430.0,0.00019452,2]
[363027774,1748554238789,-430.0,0.00019452,2]
[363027775,1748554238798,-430.0,0.00019452,2]
[363027776,1748554238807,-430.0,0.00019452,2]
[363027777,1748554238816,-430.0,0.00019452,2]
[363027778,1748554238825,-430.0,0.00019452,2]
[363027779,1748554238834,-430.0,0.00019452,2]
[363027780,1748554238843,-430.0,0.00019452,2]
[363027781,1748554238852,-430.0,0.00019452,2]
[363027782,1748554238862,-430.0,0.00019452,2]
[363027783,1748554238871,-430.0,0.00019452,2]
[363027784,1748554238881,-430.0,0.00019452,2]
[363027785,1748554238890,-1717.32,0.00019452,2]
[363027786,1748554238899,-805.53,0.00019452,2]
[363027787,1748554238908,-485.41,0.00019452,2]
[363027788,1748554238918,-430.0,0.00019452,2]
[363027789,1748554238927,-430.0,0.00019452,2]
[363027790,1748554238936,-430.0,0.00019452,2]
[363027791,1748554238945,-1009.55,0.00019452,2]
[363027792,1748554238954,-430.0,0.00019452,2]
[363027793,1748554238964,-430.0,0.00019452,2]
[363027794,1748554238973,-470.0,0.00019452,2]
[363027795,1748554238982,-430.0,0.00019452,2]
[363027796,1748554238991,-430.0,0.00019452,2]
[363027797,1748554239000,-430.0,0.00019452,2]
[363027798,1748554239009,-430.0,0.00019452,2]
[363027799,1748554239018,-430.0,0.00019452,2]
[363027800,1748554239028,-430.0,0.00019452,2]
[363027801,1748554239037,-430.0,0.00019452,2]
[363027802,1748554239046,-430.0,0.00019452,2]